fUSD/lending_fUSD_20250110
["ID","MTS","AMOUNT","RATE_DAILY","PERIOD"]
[348417173,1736523064571,-1028.38,9.833e-05,2]
[348417174,1736523064580,-500.0,9.833e-05,2]
[348417175,1736523064590,-2140.87,9.833e-05,2]
[348417176,1736523064600,-1442.69,9.833e-05,2]
[348417177,1736523064610,-500.0,9.833e-05,2]
[348417178,1736523064620,-1091.06,9.833e-05,2]
[348417179,1736523064629,-1510.87,9.833e-05,2]
[348417180,1736523064639,-500.0,9.833e-05,2]
[348417181,1736523064648,-854.48,9.834e-05,2]
[348417182,1736523064658,-500.0,9.834e-05,2]
[348417183,1736523064667,-805.07,9.834e-05,2]
[348417184,1736523064676,-1038.56,9.834e-05,2]
[348417185,1736523064685,-361.62,9.834e-05,2]
[348417186,1736523064695,-918.65,9.834e-05,2]
[348417187,1736523064704,-500.0,9.834e-05,2]
[348417188,1736523064714,-547.38,9.834e-05,2]
[348417189,1736523064724,-500.0,9.834e-05,2]
[348417190,1736523064734,-893.82,9.834e-05,2]
[348417191,1736523064743,-500.0,9.834e-05,2]
[348417192,1736523064753,-500.0,9.834e-05,2]
[348417193,1736523064762,-805.35,9.834e-05,2]
[348417194,1736523064772,-521.07,9.834e-05,2]
[348417195,1736523064781,-500.0,9.834e-05,2]
[348417196,1736523064791,-1004.75,9.834e-05,2]
[348417197,1736523064800,-987.98,9.834e-05,2]
[348417198,1736523064810,-407.54397642,9.834e-05,2]
[348417199,1736523064820,-534.61,9.834e-05,2]
[348417200,1736523064830,-538.26,9.834e-05,2]
[348417201,1736523064841,-363.61234909,9.834e-05,2]
[348417202,1736523064851,-500.0,9.834e-05,2]
[348417203,1736523064860,-500.0,9.834e-05,2]
[348417204,1736523064870,-500.0,9.834e-05,2]
[348417205,1736523064879,-500.0,9.834e-05,2]
[348417206,1736523064889,-500.0,9.834e-05,2]
[348417207,1736523064899,-513.81,9.834e-05,2]
[348417208,1736523064908,-1218.43,9.834e-05,2]
[348417209,1736523064917,-500.0,9.834e-05,2]
[348417210,1736523064926,-709.63,9.834e-05,2]
[348417211,1736523064936,-1283.512745,9.834e-05,2]
[348417212,1736523064945,-904.41,9.834e-05,2]
[348417213,1736523064955,-659.68,9.834e-05,2]
[348417214,1736523064964,-508.79242213,9.834e-05,2]
[348417215,1736523064973,-1149.66,9.834e-05,2]
[348417216,1736523064983,-500.0,9.834e-05,2]
[348417217,1736523064992,-500.0,9.834e-05,2]
[348417218,1736523065002,-621.04,9.834e-05,2]
[348417219,1736523065011,-1271.813223,9.834e-05,2]
[348417220,1736523065020,-1263.56,9.834e-05,2]
[348417221,1736523065030,-500.0,9.834e-05,2]
[348417222,1736523065039,-807.02,9.834e-05,2]
[348417223,1736523065049,-500.0,9.834e-05,2]
[348417224,1736523065058,-1015.71,9.834e-05,2]
[348417225,1736523065068,-526.56,9.834e-05,2]
[348417226,1736523065077,-500.0,9.834e-05,2]
[348417227,1736523065087,-1323.52,9.834e-05,2]
[348417228,1736523065097,-480.53105068,9.834e-05,2]
[348417229,1736523065106,-622.16,9.834e-05,2]
[348417230,1736523065115,-1136.5,9.834e-05,2]
[348417231,1736523065125,-500.0,9.834e-05,2]
[348417232,1736523065134,-500.0,9.834e-05,2]
[348417233,1736523065144,-1062.75,9.834e-05,2]
[348417234,1736523065153,-548.7,9.834e-05,2]
[348417235,1736523065162,-500.0,9.834e-05,2]
[348417236,1736523065171,-549.06,9.834e-05,2]
[348417237,1736523065180,-2436.91,9.834e-05,2]
[348417238,1736523065190,-1235.69,9.834e-05,2]
[348417239,1736523065199,-500.0,9.834e-05,2]
[348417240,1736523065208,-868.43,9.834e-05,2]
[348417241,1736523065218,-2216.32,9.834e-05,2]
[348417242,1736523065227,-1172.85,9.834e-05,2]
[348417243,1736523065235,-500.0,9.834e-05,2]
[348417244,1736523065244,-1262.26,9.834e-05,2]
[348417245,1736523065253,-757.13,9.834e-05,2]
[348417246,1736523065262,-1297.26,9.834e-05,2]
[348417247,1736523065271,-500.0,9.834e-05,2]
[348417248,1736523065281,-500.0,9.834e-05,2]
[348417249,1736523065291,-2335.25,9.834e-05,2]
[348417250,1736523065300,-1073.1,9.834e-05,2]
[348417251,1736523065309,-1195.09,9.834e-05,2]
[348417252,1736523065318,-4949.58,9.834e-05,2]
[348417253,1736523065327,-982.76,9.834e-05,2]
[348417254,1736523065339,-880.93,9.834e-05,2]
[348417255,1736523065348,-1239.31,9.834e-05,2]
[348417256,1736523065357,-4906.52,9.834e-05,2]
[348417257,1736523065367,-500.0,9.834e-05,2]
[348417258,1736523065376,-1007.6,9.834e-05,2]
[348417259,1736523065385,-500.0,9.834e-05,2]
[348417260,1736523065395,-1023.38,9.834e-05,2]
[348417261,1736523065404,-1248.84,9.834e-05,2]
[348417262,1736523065413,-2045.12,9.834e-05,2]
[348417263,1736523065422,-500.0,9.834e-05,2]
[348417264,1736523065432,-716.01,9.834e-05,2]
[348417265,1736523065442,-1174.91,9.834e-05,2]
[348417266,1736523065451,-5917.35,9.834e-05,2]
[348417267,1736523065461,-1009.9,9.834e-05,2]
[348417268,1736523065470,-1469.1,9.834e-05,2]
[348417269,1736523065479,-682.86,9.834e-05,2]
[348417270,1736523065489,-1143.26,9.834e-05,2]
[348417271,1736523065499,-1197.4,9.834e-05,2]
[348417272,1736523065508,-1190.06,9.834e-05,2]
[348417273,1736523065517,-500.82,9.834e-05,2]
[348417274,1736523065527,-4707.64,9.834e-05,2]
[348417275,1736523065536,-952.31,9.834e-05,2]
[348417276,1736523065546,-500.0,9.835e-05,2]
[348417277,1736523065556,-771.69,9.835e-05,2]
[348417278,1736523065569,-777.11,9.835e-05,2]
[348417279,1736523065580,-500.0,9.835e-05,2]
[348417280,1736523065590,-500.0,9.835e-05,2]
[348417281,1736523065601,-516.55,9.835e-05,2]
[348417282,1736523065610,-500.0,9.835e-05,2]
[348417283,1736523065619,-500.0,9.835e-05,2]
[348417284,1736523065629,-500.0,9.835e-05,2]
[348417285,1736523065639,-500.0,9.835e-05,2]
[348417286,1736523065648,-500.0,9.835e-05,2]
[348417287,1736523065657,-500.0,9.835e-05,2]
[348417288,1736523065667,-500.0,9.835e-05,2]
[348417289,1736523065676,-500.0,9.835e-05,2]
[348417290,1736523065685,-557.92683947,9.835e-05,2]
[348417291,1736523065694,-500.0,9.835e-05,2]
[348417292,1736523065703,-500.0,9.835e-05,2]
[348417293,1736523065713,-500.0,9.835e-05,2]
[348417294,1736523065723,-500.0,9.835e-05,2]
[348417295,1736523065732,-500.0,9.835e-05,2]
[348417296,1736523065742,-500.0,9.835e-05,2]
[348417297,1736523065752,-500.0,9.835e-05,2]
[348417298,1736523065766,-428.22786466,9.835e-05,2]
[348417299,1736523065776,-574.25116588,9.835e-05,2]
[348417300,1736523065786,-500.0,9.835e-05,2]
[348417301,1736523065796,-500.0,9.835e-05,2]
[348417302,1736523065805,-641.69,9.835e-05,2]
[348417303,1736523065814,-500.0,9.835e-05,2]
[348417304,1736523065823,-292.64825371,9.835e-05,2]
[348417305,1736523065832,-500.0,9.835e-05,2]
[348417306,1736523065843,-500.0,9.835e-05,2]
[348417307,1736523065852,-500.0,9.835e-05,2]
[348417308,1736523065861,-577.82,9.835e-05,2]
[348417309,1736523065870,-500.0,9.835e-05,2]
[348417310,1736523065880,-976.14,9.835e-05,2]
[348417311,1736523065888,-500.0,9.835e-05,2]
[348417312,1736523065897,-500.0,9.835e-05,2]
[348417313,1736523065906,-521.4,9.835e-05,2]
[348417314,1736523065915,-500.0,9.835e-05,2]
[348417315,1736523065924,-687.89,9.835e-05,2]
[348417316,1736523065933,-500.0,9.835e-05,2]
[348417317,1736523065942,-500.0,9.835e-05,2]
[348417318,1736523065951,-1150.28,9.835e-05,2]
[348417319,1736523065960,-500.0,9.835e-05,2]
[348417320,1736523065969,-500.0,9.835e-05,2]
[348417321,1736523065978,-881.26,9.835e-05,2]
[348417322,1736523065987,-678.72,9.835e-05,2]
[348417323,1736523065997,-672.49,9.835e-05,2]
[348417324,1736523066007,-668.92,9.835e-05,2]
[348417325,1736523066016,-500.0,9.835e-05,2]
[348417326,1736523066026,-1259.79,9.835e-05,2]
[348417327,1736523066035,-767.43,9.835e-05,2]
[348417328,1736523066044,-500.0,9.835e-05,2]
[348417329,1736523066053,-500.0,9.835e-05,2]
[348417330,1736523066200,-500.0,9.835e-05,2]
[348417331,1736523066224,-715.52,9.835e-05,2]
[348417332,1736523066233,-892.55,9.835e-05,2]
[348417333,1736523066243,-722.56,9.835e-05,2]
[348417334,1736523066252,-1257.37,9.835e-05,2]
[348417335,1736523066261,-500.0,9.835e-05,2]
[348417336,1736523066270,-1360.33,9.835e-05,2]
[348417337,1736523066280,-500.0,9.835e-05,2]
[348417338,1736523066289,-500.0,9.835e-05,2]
[348417339,1736523066298,-1041.92,9.835e-05,2]
[348417340,1736523066308,-905.09,9.835e-05,2]
[348417341,1736523066318,-1298.76,9.835e-05,2]
[348417342,1736523066327,-972.94,9.835e-05,2]
[348417343,1736523066339,-857.81,9.835e-05,2]
[348417344,1736523066350,-500.0,9.835e-05,2]
[348417345,1736523066359,-1515.42,9.835e-05,2]
[348417346,1736523066368,-1042.5,9.835e-05,2]
[348417347,1736523066378,-1388.16,9.835e-05,2]
[348417348,1736523066389,-500.0,9.835e-05,2]
[348417349,1736523066398,-3242.75,9.835e-05,2]
[348417350,1736523066407,-1589.08,9.835e-05,2]
[348417351,1736523066416,-500.0,9.835e-05,2]
[348417352,1736523066426,-959.83,9.835e-05,2]
[348417353,1736523066435,-500.0,9.835e-05,2]
[348417354,1736523066444,-500.0,9.835e-05,2]
[348417355,1736523066453,-1142.51,9.835e-05,2]
[348417356,1736523066462,-500.0,9.835e-05,2]
[348417357,1736523066472,-285.97440341,9.835e-05,2]
[348417358,1736523066481,-639.72,9.835e-05,2]
[348417359,1736523066492,-2212.31,9.835e-05,2]
[348417360,1736523066501,-500.0,9.835e-05,2]
[348417361,1736523066510,-7598.69,9.835e-05,2]
[348417362,1736523066520,-1203.7,9.846e-05,2]
[348417363,1736523066530,-4584.33,9.846e-05,2]
[348417364,1736523066540,-1164.0,9.846e-05,2]
[348417365,1736523066549,-500.0,9.846e-05,2]
[348417366,1736523066560,-1284.86,9.846e-05,2]
[348417367,1736523066569,-994.04,9.846e-05,2]
[348417368,1736523066579,-389623.69450634,9.85e-05,2]
[348417369,1736523066590,-2015.0,9.858e-05,2]
[348417370,1736523066601,-2807.72,9.873e-05,2]
[348417371,1736523066611,-3785.84,9.873e-05,2]
[348417372,1736523066620,-2330.28,9.873e-05,2]
[348417373,1736523066630,-2423.96,9.873e-05,2]
[348417374,1736523066643,-500.0,9.873e-05,2]
[348417375,1736523066653,-1705.66,9.873e-05,2]
[348417376,1736523066663,-3880.21,9.873e-05,2]
[348417377,1736523066672,-1879.13,9.873e-05,2]
[348417378,1736523066682,-1341.89,9.873e-05,2]
[348417379,1736523066691,-1457.95,9.873e-05,2]
[348417380,1736523066701,-101348.13942147,9.88e-05,2]
[348417381,1736523066711,-2083.23,9.899e-05,2]
[348417382,1736523066720,-1954.56,9.899e-05,2]
[348417383,1736523066730,-3772.86,9.899e-05,2]
[348417384,1736523066739,-1476.71,9.899e-05,2]
[348417385,1736523066748,-1041.47,9.899e-05,2]
[348417386,1736523066758,-1204.92,9.899e-05,2]
[348417387,1736523066768,-2246.11,9.899e-05,2]
[348417388,1736523066777,-601.81,9.899e-05,2]
[348417389,1736523066788,-1225.73,9.899e-05,2]
[348417390,1736523066797,-1960.17,9.899e-05,2]
[348417391,1736523066806,-1520.42,9.899e-05,2]
[348417392,1736523066817,-2101.66,9.899e-05,2]
[348417393,1736523066826,-1579.91,9.899e-05,2]
[348417394,1736523066836,-500.0,9.899e-05,2]
[348417395,1736523066848,-1723.81,9.899e-05,2]
[348417396,1736523066858,-1628.43,9.899e-05,2]
[348417397,1736523066867,-668.15,9.899e-05,2]
[348417398,1736523066876,-500.0,9.899e-05,2]
[348417399,1736523066886,-3776.27,9.899e-05,2]
[348417400,1736523066895,-32138.404,9.9e-05,2]
[348417401,1736523066905,-500.0,9.9e-05,2]
[348417402,1736523066914,-1607.5998,9.9e-05,2]
[348417403,1736523066924,-4485.668703,9.9e-05,2]
[348417404,1736523066935,-1632.0,9.9e-05,2]
[348417405,1736523066944,-900.0,9.9e-05,3]
[348417406,1736523066954,-1137.67,9.915e-05,2]
[348417407,1736523066963,-50972.20444127,9.925e-05,2]
[348417408,1736523066973,-500.0,9.946e-05,2]
[348417409,1736523066982,-500.0,9.946e-05,2]
[348417410,1736523066991,-500.0,9.946e-05,2]
[348417411,1736523067001,-500.0,9.946e-05,2]
[348417412,1736523067010,-500.0,9.946e-05,2]
[348417413,1736523067020,-500.0,9.946e-05,2]
[348417414,1736523067029,-500.0,9.946e-05,2]
[348417415,1736523067039,-500.0,9.946e-05,2]
[348417416,1736523067049,-605.63,9.946e-05,2]
[348417417,1736523067058,-630.08,9.946e-05,2]
[348417418,1736523067068,-500.0,9.946e-05,2]
[348417419,1736523067078,-500.0,9.946e-05,2]
[348417420,1736523067087,-378.03621014,9.946e-05,2]
[348417421,1736523067097,-500.0,9.946e-05,2]
[348417422,1736523067106,-500.0,9.946e-05,2]
[348417423,1736523067115,-510.70732432,9.946e-05,2]
[348417424,1736523067124,-739.45,9.946e-05,2]
[348417425,1736523067134,-500.0,9.946e-05,2]
[348417426,1736523067143,-500.0,9.946e-05,2]
[348417427,1736523067153,-500.0,9.946e-05,2]
[348417428,1736523067163,-500.0,9.946e-05,2]
[348417429,1736523067174,-500.46,9.946e-05,2]
[348417430,1736523067184,-500.0,9.946e-05,2]
[348417431,1736523067193,-500.0,9.946e-05,2]
[348417432,1736523067202,-500.0,9.946e-05,2]
[348417433,1736523067212,-500.0,9.946e-05,2]
[348417434,1736523067221,-291.39,9.946e-05,2]
[348417435,1736523067231,-500.0,9.946e-05,2]
[348417436,1736523067240,-855.16,9.946e-05,2]
[348417437,1736523067250,-508.32434252,9.946e-05,2]
[348417438,1736523067260,-802.99,9.946e-05,2]
[348417439,1736523067269,-500.0,9.946e-05,2]
[348417440,1736523067279,-508.36826225,9.946e-05,2]
[348417441,1736523067290,-500.0,9.946e-05,2]
[348417442,1736523067299,-500.0,9.946e-05,2]
[348417443,1736523067308,-503.22,9.946e-05,2]
[348417444,1736523067317,-500.0,9.946e-05,2]
[348417445,1736523067327,-500.0,9.946e-05,2]
[348417446,1736523067336,-500.0,9.946e-05,2]
[348417447,1736523067347,-500.0,9.946e-05,2]
[348417448,1736523067357,-500.0,9.946e-05,2]
[348417449,1736523067366,-508.81106253,9.946e-05,2]
[348417450,1736523067375,-500.0,9.946e-05,2]
[348417451,1736523067385,-500.0,9.946e-05,2]
[348417452,1736523067395,-190.12798754,9.946e-05,2]
[348417453,1736523067404,-500.0,9.946e-05,2]
[348417454,1736523067413,-719.56,9.946e-05,2]
[348417455,1736523067423,-500.0,9.946e-05,2]
[348417456,1736523067432,-500.0,9.946e-05,2]
[348417457,1736523067441,-500.0,9.946e-05,2]
[348417458,1736523067450,-500.0,9.946e-05,2]
[348417459,1736523067459,-500.0,9.946e-05,2]
[348417460,1736523067469,-241.7,9.946e-05,2]
[348417461,1736523067478,-500.0,9.946e-05,2]
[348417462,1736523067488,-500.0,9.946e-05,2]
[348417463,1736523067498,-500.0,9.946e-05,2]
[348417464,1736523067507,-500.0,9.946e-05,2]
[348417465,1736523067516,-500.0,9.946e-05,2]
[348417466,1736523067526,-530.14,9.946e-05,2]
[348417467,1736523067535,-627.11,9.946e-05,2]
[348417468,1736523067544,-500.0,9.946e-05,2]
[348417469,1736523067553,-240.35,9.946e-05,2]
[348417470,1736523067567,-500.0,9.946e-05,2]
[348417471,1736523067576,-805.46,9.946e-05,2]
[348417472,1736523067586,-500.0,9.946e-05,2]
[348417473,1736523067596,-500.0,9.946e-05,7]
[348417474,1736523067607,-500.0,9.946e-05,2]
[348417475,1736523067616,-500.0,9.946e-05,2]
[348417476,1736523067626,-500.0,9.946e-05,2]
[348417477,1736523067636,-500.0,9.946e-05,2]
[348417478,1736523067646,-500.0,9.946e-05,2]
[348417479,1736523067656,-500.0,9.946e-05,2]
[348417480,1736523067665,-531.17077151,9.946e-05,2]
[348417481,1736523067674,-500.0,9.946e-05,2]
[348417482,1736523067684,-500.0,9.946e-05,2]
[348417483,1736523067694,-500.0,9.946e-05,2]
[348417484,1736523067703,-890.36,9.947e-05,2]
[348417485,1736523067712,-1058.1,9.947e-05,2]
[348417486,1736523067722,-500.0,9.947e-05,2]
[348417487,1736523067731,-882.45,9.947e-05,2]
[348417488,1736523067741,-1148.23,9.947e-05,2]
[348417489,1736523067751,-500.0,9.947e-05,2]
[348417490,1736523067761,-717.8,9.947e-05,2]
[348417491,1736523067771,-1318.02,9.947e-05,2]
[348417492,1736523067781,-729.69,9.947e-05,2]
[348417493,1736523067791,-1445.67,9.947e-05,2]
[348417494,1736523067801,-500.0,9.947e-05,2]
[348417495,1736523067812,-1466.24,9.947e-05,2]
[348417496,1736523067822,-1064.1,9.947e-05,2]
[348417497,1736523067831,-1108.95,9.947e-05,2]
[348417498,1736523067843,-1937.77,9.947e-05,2]
[348417499,1736523067853,-500.0,9.947e-05,2]
[348417500,1736523067863,-2265.16,9.947e-05,2]
[348417501,1736523067872,-1057.49,9.947e-05,2]
[348417502,1736523067882,-500.0,9.947e-05,2]
[348417503,1736523067893,-500.0,9.947e-05,2]
[348417504,1736523067903,-500.0,9.947e-05,2]
[348417505,1736523067913,-1061.54,9.947e-05,2]
[348417506,1736523067923,-500.0,9.947e-05,2]
[348417507,1736523067932,-1470.67,9.947e-05,2]
[348417508,1736523067941,-500.0,9.947e-05,2]
[348417509,1736523067951,-500.0,9.947e-05,2]
[348417510,1736523067961,-745.27,9.947e-05,2]
[348417511,1736523067971,-693.6,9.947e-05,2]
[348417512,1736523067982,-500.0,9.947e-05,2]
[348417513,1736523067992,-3628.93,9.947e-05,2]
[348417514,1736523068001,-500.0,9.947e-05,2]
[348417515,1736523068010,-956.24,9.947e-05,2]
[348417516,1736523068019,-616.85,9.947e-05,2]
[348417517,1736523068028,-1012.26,9.947e-05,2]
[348417518,1736523068037,-2271.72,9.947e-05,2]
[348417519,1736523068046,-500.0,9.947e-05,2]
[348417520,1736523068056,-500.0,9.947e-05,2]
[348417521,1736523068065,-500.0,9.947e-05,2]
[348417522,1736523068074,-500.0,9.947e-05,2]
[348417523,1736523068083,-1274.35,9.947e-05,2]
[348417524,1736523068093,-4912.19,9.947e-05,2]
[348417525,1736523068103,-572.0,9.947e-05,2]
[348417526,1736523068112,-335.02,9.947e-05,2]
[348417527,1736523068122,-696.77,9.947e-05,2]
[348417528,1736523068132,-701.21,9.947e-05,2]
[348417529,1736523068141,-6057.02,9.947e-05,2]
[348417530,1736523068150,-969.86,9.947e-05,2]
[348417531,1736523068159,-500.0,9.947e-05,2]
[348417532,1736523068169,-864.4,9.947e-05,2]
[348417533,1736523068178,-500.0,9.947e-05,2]
[348417534,1736523068187,-500.0,9.947e-05,2]
[348417535,1736523068196,-643.05,9.947e-05,2]
[348417536,1736523068205,-823.49,9.947e-05,2]
[348417537,1736523068214,-696.44,9.947e-05,2]
[348417538,1736523068224,-573.02,9.947e-05,2]
[348417539,1736523068233,-235.15100063,9.947e-05,2]
[348417540,1736523068243,-500.0,9.947e-05,2]
[348417541,1736523068252,-849.34,9.947e-05,2]
[348417542,1736523068263,-500.0,9.947e-05,2]
[348417543,1736523068273,-2741.68,9.947e-05,2]
[348417544,1736523068286,-1090.78,9.947e-05,2]
[348417545,1736523068295,-500.0,9.947e-05,2]
[348417546,1736523068305,-500.0,9.947e-05,2]
[348417547,1736523068315,-928.64,9.947e-05,2]
[348417548,1736523068326,-500.0,9.947e-05,2]
[348417549,1736523068336,-500.0,9.947e-05,2]
[348417550,1736523068348,-974.19,9.947e-05,2]
[348417551,1736523068358,-5865.96,9.947e-05,2]
[348417552,1736523068369,-500.0,9.947e-05,2]
[348417553,1736523068378,-871.11,9.947e-05,2]
[348417554,1736523068388,-1238.69,9.947e-05,2]
[348417555,1736523068398,-500.0,9.947e-05,2]
[348417556,1736523068407,-500.0,9.947e-05,2]
[348417557,1736523068418,-500.0,9.947e-05,2]
[348417558,1736523068427,-637.63,9.947e-05,2]
[348417559,1736523068437,-646.12,9.947e-05,2]
[348417560,1736523068447,-500.0,9.947e-05,2]
[348417561,1736523068457,-918.03,9.947e-05,2]
[348417562,1736523068467,-1578.46,9.947e-05,2]
[348417563,1736523068477,-1248.67,9.947e-05,2]
[348417564,1736523068486,-1571.99,9.947e-05,2]
[348417565,1736523068495,-1525.3,9.947e-05,2]
[348417566,1736523068505,-2546.70582769,9.948e-05,2]
[348417567,1736523068514,-6643.109,9.958e-05,2]
[348417568,1736523068524,-292.19,9.958e-05,2]
[348417569,1736523068533,-2921.39029662,9.959e-05,2]
[348417570,1736523068542,-11617.0618383,9.988e-05,2]
[348417571,1736523068552,-1436121.78690604,9.998e-05,2]
[348417572,1736523068565,-1073.83,9.999e-05,2]
[348417573,1736523068575,-8101.05,9.999e-05,2]
[348417574,1736523068584,-500.0,9.999e-05,2]
[348417575,1736523068595,-67337.6320365,9.999e-05,2]
[348417576,1736523068604,-40790.98706264,9.999e-05,2]
[348417577,1736523068613,-176.25171901,9.999e-05,2]
[348417578,1736523068623,-433445.76325231,0.0001,2]
[348417579,1736523069165,-341.24596483,0.0001,2]
[348417580,1736523069176,-1660.47195762,0.0001,2]
[348417581,1736523070050,-500.0,8.737e-05,2]
[348417582,1736523070064,-500.0,8.737e-05,2]
[348417583,1736523070078,-500.0,8.737e-05,2]
[348417584,1736523070097,-500.0,8.737e-05,2]
[348417585,1736523070111,-500.0,8.85e-05,2]
[348417586,1736523070126,-500.0,9.011e-05,2]
[348417587,1736523070142,-500.0,9.011e-05,2]
[348417588,1736523070157,-500.0,9.011e-05,2]
[348417589,1736523070172,-500.0,9.124e-05,2]
[348417590,1736523070186,-474.63972652,9.285e-05,2]
[348417591,1736523070201,-317.88,9.285e-05,2]
[348417592,1736523070215,-217.78,9.285e-05,2]
[348417593,1736523070230,-500.0,9.398e-05,2]
[348417594,1736523070245,-500.0,9.672e-05,2]
[348417595,1736523070259,-9617.0,9.858e-05,2]
[348417596,1736523070272,-289.15,9.946e-05,2]
[348417597,1736523070287,-150638.65775757,0.0001,2]
[348417598,1736523070300,-2468661.95344301,0.0001,2]
[348417599,1736523070314,-495536.4683544,0.0001,2]
[348417600,1736523070330,-617.30102413,0.0001,2]
[348417601,1736523070349,-151.0,0.0001,2]
[348417602,1736523070365,-151.0,0.0001,2]
[348417603,1736523070378,-151.0,0.0001,2]
[348417604,1736523070392,-151.0,0.0001,2]
[348417605,1736523070406,-151.0,0.0001,2]
[348417606,1736523070419,-151.0,0.0001,2]
[348417607,1736523070434,-164.934334,0.0001,2]
[348417608,1736523070448,-151.0,0.0001,2]
[348417609,1736523070462,-151.0,0.0001,2]
[348417610,1736523070476,-269.833364,0.0001,2]
[348417611,1736523070490,-2000.0,0.0001,2]
[348417612,1736523070503,-200.0,0.0001,2]
[348417613,1736523070512,-333179.66474977,0.0001,2]
[348417614,1736523070522,-635.0,0.0001,2]
[348417615,1736523070531,-150.0,0.0001,2]
[348417616,1736523070541,-566.0,0.0001,2]
[348417617,1736523070550,-1861.0,0.0001,2]
[348417618,1736523070560,-817.0,0.0001,2]
[348417619,1736523070573,-510.55,0.0001,2]
[348417620,1736523070583,-1644.739,0.0001,2]
[348417621,1736523070597,-537.0,0.0001,2]
[348417622,1736523070607,-2643.358,0.0001,2]
[348417623,1736523070617,-3023.39241711,0.0001,2]
[348417624,1736523070627,-150.0,0.0001,2]
[348417625,1736523070636,-500.0,0.0001,2]
[348417626,1736523070647,-150.0,0.0001,2]
[348417627,1736523070657,-556.68291942,0.0001,2]
[348417628,1736523070667,-150.0,0.0001,2]
[348417629,1736523070676,-260.35241381,0.0001,2]
[348417630,1736523070685,-150.0,0.0001,2]
[348417631,1736523070695,-150.0,0.0001,2]
[348417632,1736523070705,-150.0,0.0001,2]
[348417633,1736523070715,-7409.28771656,0.0001,2]
[348417634,1736523070725,-56292.76848877,0.0001,2]
[348417635,1736523070734,-3643.47659642,0.0001,2]
[348417636,1736523070743,-632802.49577107,0.0001,2]
[348417637,1736523070752,-1104.0,0.0001,2]
[348417638,1736523070762,-2957.15967056,0.0001,2]
[348417639,1736523070771,-2957.15967056,0.0001,2]
[348417640,1736523070781,-3000.0,0.0001,2]
[348417641,1736523070791,-3000.0,0.0001,2]
[348417642,1736523070801,-3000.0,0.0001,2]
[348417643,1736523070811,-3000.0,0.0001,2]
[348417644,1736523070821,-3000.0,0.0001,2]
[348417645,1736523070831,-3000.0,0.0001,2]
[348417646,1736523070844,-2957.15967056,0.0001,2]
[348417647,1736523070853,-2957.15967056,0.0001,2]
[348417648,1736523070863,-900.0,0.0001,3]
[348417649,1736523070872,-1000.0,0.0001,2]
[348417650,1736523070883,-1000.0,0.0001,2]
[348417651,1736523070892,-1000.0,0.0001,2]
[348417652,1736523070902,-1000.0,0.0001,2]
[348417653,1736523070911,-1000.0,0.0001,2]
[348417654,1736523070920,-1000.0,0.0001,2]
[348417655,1736523070929,-1000.0,0.0001,2]
[348417656,1736523070939,-1000.0,0.0001,2]
[348417657,1736523071372,-2452097.87337678,0.0001,2]
[348417658,1736523071394,-1000.0,0.0001,2]
[348417659,1736523071408,-1000.0,0.0001,2]
[348417660,1736523071418,-28711.30314759,0.0001,2]
[348417661,1736523071427,-151.0,0.0001,2]
[348417662,1736523071437,-151.0,0.0001,2]
[348417663,1736523071446,-150.0,0.0001,2]
[348417664,1736523071456,-266.88775563,0.0001,2]
[348417665,1736523071465,-500.0,0.0001,2]
[348417666,1736523071475,-150.09140942,0.0001,2]
[348417667,1736523071484,-245.27525467,0.0001,2]
[348417668,1736523071494,-18795.36628658,0.0001,2]
[348417669,1736523071504,-500.0,0.0001,2]
[348417670,1736523071513,-150.0,0.0001,2]
[348417671,1736523071523,-1284.575,0.0001,2]
[348417672,1736523071533,-150.0,0.0001,2]